bitfinex-derivatives/quotes_ETHF0:USTF0_20240904
["timestamp","ask_amount","ask_price","bid_price","bid_amount"]
[1725467969571,2.78,2482.1,2481.6,0.00603355]
[1725467969865,2.78,2482.1,2481.6,0.40896355]
[1725467970065,2.78,2482.1,2481.7,0.40292]
[1725467970265,2.78,2482.1,2481.6,0.40896355]
[1725467970466,0.40289,2481.9,2481.6,0.00603355]
[1725467970669,0.40292,2481.7,2481.6,0.00603355]
[1725467972064,4.43252,2481.7,2481.6,0.00603355]
[1725467972571,0.40292,2481.7,2481.6,0.00603355]
[1725467972972,2.78,2481.9,2481.6,0.00603355]
[1725467973178,0.40291,2481.8,2481.6,0.00603355]
[1725467973866,0.40292,2481.7,2481.6,0.00603355]
[1725467974569,3.1829,2481.9,2481.6,0.00603355]
[1725467974873,3.18291,2481.9,2481.6,0.00603355]
[1725467975067,0.40291,2481.8,2481.6,0.00603355]
[1725467975370,0.40292,2481.7,2481.6,0.00603355]
[1725467975968,2.78,2481.9,2481.6,0.00603355]
[1725467976268,3.61072,2481.7,2481.6,0.00603355]
[1725467976867,4.61804,2481.7,2481.6,0.00603355]
[1725467977670,4.81319467,2481.7,2481.6,0.00603355]
[1725467977873,4.61804,2481.7,2481.6,0.00603355]
[1725467978670,1.41024,2481.7,2481.6,0.00603355]
[1725467979276,4.61804,2481.7,2481.6,0.00603355]
[1725467979671,1.41024,2481.7,2481.6,0.00603355]
[1725467979866,4.61804,2481.7,2481.6,0.00603355]
[1725467981778,1.41024,2481.7,2481.6,0.00603355]
[1725467982079,0.40292,2481.7,2481.6,0.00603355]
[1725467982271,0.40292,2481.7,2481.6,36.32918848]
[1725467982671,3.61072,2481.7,2481.6,36.32918848]
[1725467982872,4.61804,2481.7,2481.6,36.32918848]
[1725467983568,3.61072,2481.7,2481.6,36.32918848]
[1725467983773,4.61804,2481.7,2481.6,36.32918848]
[1725467983973,6.70804,2481.7,2481.6,36.32918848]
[1725467984175,5.70072,2481.7,2481.6,36.32918848]
[1725467985083,2.09,2481.7,2481.6,36.32918848]
[1725467985476,2.49292,2481.7,2481.6,36.32918848]
[1725467985880,3.50024,2481.7,2481.6,36.32918848]
[1725467986582,4.50756,2481.7,2481.6,36.32918848]
[1725467986776,8.53716,2481.7,2481.6,12.24918848]
[1725467987179,6.52252,2481.7,2481.6,12.24918848]
[1725467987483,3.50024,2481.7,2481.6,12.24918848]
[1725467987979,2.49292,2481.7,2481.6,12.24918848]
[1725467988284,3.50024,2481.7,2481.6,12.24918848]
[1725467988679,2.49292,2481.7,2481.6,12.24918848]
[1725467988985,3.50024,2481.7,2481.6,12.24918848]
[1725467989484,4.50756,2481.7,2481.6,12.24918848]
[1725467989688,8.53716,2481.7,2481.6,12.24918848]
[1725467990682,9.10246,2481.7,2481.6,12.24918848]
[1725467991283,9.10246,2481.7,2481.6,12.05218848]
[1725467991681,9.30279621,2481.7,2481.6,12.05218848]
[1725467991882,9.49783381,2481.7,2481.6,12.05218848]
[1725467992183,2.41776,2481.5,2481.4,0.00603355]
[1725467992384,9.85491167,2481.5,2481.4,0.00603355]
[1725467992590,8.84751167,2481.5,2481.4,0.00603355]
[1725467993186,4.81791167,2481.5,2481.4,0.00603355]
[1725467993781,3.81051167,2481.5,2481.4,0.00603355]
[1725467995192,4.81791167,2481.5,2481.4,0.00603355]
[1725467995383,3.61076,2481.5,2481.4,0.00603355]
[1725467995784,0.19679103,2481.6,2481.4,4.03563355]
[1725467995985,0.59973103,2481.6,2481.5,0.5925]
[1725467996891,0.40296,2481.5,2481.4,0.00603355]
[1725467998287,4.61816,2481.5,2481.4,0.00603355]
[1725467998680,5.62556,2481.5,2481.4,0.00603355]
[1725467999889,5.82475597,2481.5,2481.4,0.00603355]
[1725468000090,4.81735597,2481.5,2481.4,0.00603355]
[1725468000292,0.59975103,2481.6,2481.4,0.00603355]
[1725468000493,2.09,2481.7,2481.4,0.00603355]
[1725468000690,0.40294,2481.6,2481.4,0.00603355]
[1725468001186,2.69742798,2481.7,2481.4,0.00603355]
[1725468001580,5.2978,2481.8,2481.4,0.00603355]
[1725468001787,3.2078,2481.8,2481.5,0.40295]
[1725468001995,3.61071,2481.8,2481.6,1.1754]
[1725468002203,1.41024,2481.7,2481.6,0.6055]
[1725468002393,1.41036,2481.5,2481.4,0.00603355]
[1725468002593,6.70816,2481.5,2481.4,0.00603355]
[1725468002891,0.40305,2480.9,2480.8,0.6116]
[1725468003093,0.40304,2481.0,2480.8,1.2171]
[1725468003395,2.09,2480.9,2480.8,1.2171]
[1725468003590,0.40303,2481.1,2480.8,1.2171]
[1725468004086,0.40304,2481.0,2480.8,1.2171]
[1725468004387,0.40305,2480.9,2480.8,1.2171]
[1725468004589,3.2078,2481.0,2480.8,1.2171]
[1725468005095,0.40304,2481.0,2480.8,1.2171]
[1725468005892,2.49905631,2481.2,2480.8,1.2171]
[1725468006089,3.2078,2481.7,2481.1,0.40302]
[1725468006291,3.2078,2481.7,2481.0,3.2078]
[1725468006498,2.09,2481.9,2481.5,0.40296]
[1725468006701,2.09,2482.1,2481.6,4.76534]
[1725468006901,2.09,2482.1,2481.7,0.5974]
[1725468007201,5.70071,2481.8,2481.7,0.5974]
[1725468007398,0.40292,2481.7,2481.6,0.5743]
[1725468007697,2.09,2481.7,2481.6,0.5743]
[1725468007903,0.40292,2481.8,2481.6,0.5743]
[1725468008197,2.09,2481.9,2481.6,0.5743]
[1725468008396,2.09604631,2482.1,2481.6,0.5743]
[1725468008697,0.00604631,2482.1,2481.8,0.4029]
[1725468008900,0.00604631,2482.1,2481.9,1.1897]
[1725468009098,0.00604631,2482.1,2481.9,1.59258]
[1725468009400,0.00604631,2482.1,2482.0,0.40288]
[1725468009597,0.00604631,2482.1,2482.0,4.43168]
[1725468009804,0.20231854,2482.6,2482.2,0.40283]
[1725468010100,3.2078,2482.9,2482.3,4.6176]
[1725468010298,1.34640467,2483.1,2482.5,0.40278]
[1725468010486,0.40276,2482.7,2482.6,1.1842]
[1725468011291,2.09,2482.8,2482.6,1.1842]
[1725468011696,0.00604631,2482.9,2482.6,1.1842]
[1725468012196,27.96112,2483.8,2482.6,1.1842]
[1725468012197,31.64185,2483.8,2482.8,3.2078]
[1725468012406,0.40261,2483.7,2483.1,0.40268]
[1725468012700,0.40263,2483.5,2483.2,0.6148]
[1725468012905,0.40264,2483.5,2483.2,0.6148]
[1725468013192,0.00604631,2483.6,2483.2,0.6148]
[1725468013399,0.40866631,2483.6,2483.2,1.1824]
[1725468013902,0.00604631,2483.6,2483.2,1.1824]
[1725468015096,0.00604631,2483.6,2483.4,3.2078]
[1725468015288,0.00604631,2483.6,2483.3,0.5858]
[1725468015593,0.40866631,2483.6,2483.3,0.5858]
[1725468016099,0.40265,2483.4,2483.3,0.5858]
[1725468016301,8.24081,2483.5,2482.4,3.21384631]
[1725468016498,3.2078,2483.4,2482.7,3.2078]
[1725468016689,2.78604631,2483.6,2482.7,3.2078]
[1725468017000,0.4027,2483.1,2482.7,3.2078]
[1725468017196,0.40263,2483.5,2482.9,0.40272]
[1725468017594,0.40265,2483.4,2482.8,0.40274]
[1725468018200,0.40265,2483.4,2482.9,0.40273]
[1725468018395,0.40267,2483.3,2482.9,0.40273]
[1725468018597,0.40266,2483.4,2482.9,0.40273]
[1725468018798,1.0066,2483.5,2482.7,3.8161316]
[1725468018992,4.21443,2483.4,2482.7,3.4133716]
[1725468019198,0.40271,2483.1,2482.7,3.4133716]
[1725468019394,0.40271,2483.0,2482.7,3.4133716]
[1725468019705,0.40271,2483.0,2482.7,3.2078]
[1725468019904,0.40271,2483.0,2482.7,7.2358]
[1725468020102,1.00667,2483.3,2482.8,4.028]
[1725468020404,0.40271,2483.0,2482.7,3.2078]
[1725468020601,1.00667,2483.3,2482.7,3.2078]
[1725468020799,0.40276,2482.8,2482.6,0.5858]
[1725468021000,0.40274,2482.9,2482.6,0.5858]
[1725468021404,8.38683978,2483.6,2482.6,0.5858]
[1725468021405,0.40276,2482.7,2482.6,0.5858]
[1725468022007,0.40279,2482.5,2482.4,0.00604631]
[1725468022398,1.40978,2482.5,2482.4,0.00604631]
[1725468022599,4.61758,2482.5,2482.4,0.00604631]
[1725468022800,1.40978,2482.5,2482.4,0.00604631]
[1725468023505,4.61758,2482.5,2482.4,0.00604631]
[1725468023706,1.00708,2482.3,2481.3,3.4098]
[1725468023912,0.40289,2482.0,2481.4,0.40297]
[1725468024207,0.40286,2482.1,2481.6,3.61073]
[1725468024809,0.00604631,2482.1,2481.7,0.40292]
[1725468025102,0.00604631,2482.1,2481.8,0.5889]
[1725468025311,0.00604631,2482.1,2481.8,0.9918]
[1725468025502,0.00604631,2482.1,2481.8,0.5889]
[1725468025703,0.00604631,2482.1,2482.0,0.40288]
[1725468025909,0.00604631,2482.1,2481.9,3.2078]
[1725468026303,1.01320631,2482.1,2481.7,1.2206]
[1725468026499,0.40291,2481.8,2481.7,1.2206]
[1725468026704,0.40291,2481.8,2481.7,0.6129]
[1725468027719,0.40292,2481.7,2481.6,0.00604631]
[1725468028107,5.43984,2481.7,2481.6,0.00604631]
[1725468028404,6.05514,2481.7,2481.6,0.00604631]
[1725468028908,4.43252,2481.7,2481.6,0.00604631]
[1725468029214,3.2078,2482.0,2481.6,0.00604631]
[1725468029407,0.40292,2481.7,2481.6,0.00604631]
[1725468029906,0.40291,2481.8,2481.6,0.00604631]
[1725468030109,3.39848971,2482.0,2481.6,0.00604631]
[1725468030311,0.40291,2481.8,2481.6,0.00604631]
[1725468030608,0.00604631,2482.1,2481.6,3.21384631]
[1725468030809,0.00604631,2482.1,2481.9,3.2078]
[1725468031008,0.00604631,2482.1,2482.0,1.57598]
[1725468031312,3.2078,2482.9,2482.1,1.00716]
[1725468031511,0.40271,2483.1,2482.7,0.40276]
[1725468031703,0.4027,2483.1,2482.8,0.5861]
[1725468032012,0.4027,2483.2,2482.8,0.98884]
[1725468032218,1.00683,2482.9,2482.5,0.5653]
[1725468032413,3.2078,2482.7,2482.1,3.2078]
[1725468032617,4.21486,2482.4,2481.8,0.5941]
[1725468032910,1.00706,2482.4,2481.8,3.8019]
[1725468033115,3.2078,2482.3,2481.8,0.5941]
[1725468033319,1.00711,2482.3,2481.8,0.5941]
[1725468033611,0.40288,2482.0,2481.8,0.5941]
[1725468033811,1.00699,2482.5,2481.8,0.5941]
[1725468034114,0.40284,2482.3,2481.9,0.5794]
[1725468034309,1.00699,2482.5,2481.9,0.5794]
[1725468034517,0.40285,2482.2,2481.9,0.5794]
[1725468034712,0.40286,2482.1,2481.9,0.5794]
[1725468035024,3.2078,2482.3,2481.9,0.5794]
[1725468035224,1.00706,2482.4,2481.9,0.5794]
[1725468035714,0.40285,2482.2,2481.9,0.5794]
[1725468036611,0.40282,2482.4,2481.9,0.98228]
[1725468036814,1.8230334,2482.8,2482.0,0.40288]
[1725468037016,0.4028,2482.5,2482.0,0.40288]
[1725468037214,0.40281,2482.4,2482.0,0.40288]
[1725468037412,1.00691,2482.7,2481.9,0.5794]
[1725468037612,1.00691,2482.7,2482.1,3.2078]
[1725468037812,0.4028,2482.5,2482.1,3.2078]
[1725468038111,0.4028,2482.5,2481.9,0.5794]
[1725468038112,0.40284,2482.2,2481.9,0.98228]
[1725468038516,0.40286,2482.2,2481.9,0.5794]
[1725468039419,0.40286,2482.1,2481.9,0.98229]
[1725468039815,0.40286,2482.1,2481.9,4.6082]
[1725468040108,0.40288,2482.0,2481.9,0.5794]
[1725468040515,0.40288,2482.0,2481.9,4.6082]
[1725468041018,0.40288,2482.0,2481.9,4.0288]
[1725468042313,0.40289,2481.9,2481.8,3.8019]
[1725468042509,1.41013,2481.9,2481.8,0.5941]
[1725468043722,1.41013,2481.9,2481.7,0.5938]
[1725468043723,1.41019,2481.8,2481.7,0.5938]
[1725468044217,0.40291,2481.8,2481.7,0.5938]
[1725468044616,0.5814,2482.3,2481.7,0.5938]
[1725468044921,0.4029,2481.9,2481.7,0.5938]
[1725468045422,0.4029,2481.9,2481.7,4.6234]
[1725468045822,0.40291,2481.8,2481.7,4.6234]
[1725468046023,0.40289,2482.0,2481.7,0.99672]
[1725468046321,0.40288,2482.0,2481.7,0.99672]
[1725468046520,1.00704,2482.4,2481.9,0.40288]
[1725468046720,0.40286,2482.1,2482.0,0.5761]
[1725468047727,0.40285,2482.2,2482.0,5.00777]
[1725468047917,0.40285,2482.2,2482.0,0.97897]
[1725468048826,0.40283,2482.3,2482.1,0.40285]
[1725468049127,0.40286,2482.1,2482.0,0.5761]
[1725468049327,0.40291,2481.8,2481.7,0.5938]
[1725468049628,0.40291,2481.8,2481.7,1.1768]
[1725468050033,0.4029,2481.9,2481.7,1.57972]
[1725468050226,1.00717,2482.1,2481.7,1.1768]
[1725468050431,0.40291,2481.8,2481.7,1.1768]
[1725468050630,0.40292,2481.7,2481.6,0.00604631]
[1725468051634,1.41024,2481.7,2481.6,0.00604631]
[1725468052435,1.41024,2481.7,2481.0,1.178]
[1725468052436,0.403,2481.3,2481.0,1.178]
[1725468052628,0.40305,2481.0,2480.7,0.5981]
[1725468053438,3.5482891,2481.2,2480.7,0.5981]
[1725468053632,0.40304,2481.0,2480.7,0.5981]
[1725468053839,3.5482891,2481.2,2480.6,0.00604631]
[1725468054140,0.40305,2481.0,2480.6,0.00604631]
[1725468054836,0.40303,2481.1,2480.6,0.00604631]
[1725468055036,0.40304,2481.0,2480.6,0.00604631]
[1725468055235,0.40303,2481.1,2480.6,0.00604631]
[1725468056142,5.9878,2480.9,2480.6,0.00604631]
[1725468056440,0.40309,2480.7,2480.6,0.00604631]
[1725468057036,13.81893,2480.7,2479.8,3.2078]
[1725468057241,0.40316,2480.3,2479.8,3.2078]
[1725468057442,0.40314,2480.4,2479.8,3.2078]
[1725468058041,0.00604631,2480.3,2479.9,0.00604631]
[1725468058435,0.40920631,2480.3,2479.9,0.00604631]
[1725468058641,0.00604631,2480.3,2480.2,0.40317]
[1725468058837,0.00604631,2480.3,2480.1,0.40318]
[1725468059045,0.00604631,2480.3,2480.2,4.032]
[1725468059340,0.00604631,2480.3,2480.2,4.43517]
[1725468059538,0.00604631,2480.3,2480.0,1.7838]
[1725468059740,0.00604631,2480.3,2480.0,2.18699]
[1725468059937,0.00604631,2480.3,2480.1,7.2398]
[1725468060137,0.00604631,2480.3,2480.2,0.40317]
[1725468060338,0.00604631,2480.3,2480.2,4.43517]
[1725468060543,0.00604631,2480.3,2480.2,10.43517]
[1725468061341,0.00604631,2480.3,2480.2,4.43517]
[1725468061647,0.40921631,2480.3,2480.0,2.18699]
[1725468061948,0.40317,2480.2,2480.0,2.18699]
[1725468062150,0.00604631,2480.3,2480.0,2.18699]
[1725468062447,0.40920631,2480.3,2480.1,0.40318]
[1725468062745,0.40317,2480.2,2480.0,2.18699]
[1725468063047,0.40920631,2480.3,2480.1,0.40318]
[1725468063340,0.40317,2480.2,2480.0,2.18699]
[1725468063548,0.40317,2480.2,2480.1,0.40318]
[1725468063752,0.00604631,2480.3,2480.2,0.40317]
[1725468064143,0.40919631,2480.3,2480.2,0.40317]
[1725468064339,0.4032,2480.0,2479.9,0.00604631]
[1725468064545,1.41121,2480.0,2479.9,0.00604631]
[1725468065550,2.41922,2480.0,2479.9,0.00604631]
[1725468065850,1.41121,2480.0,2479.9,0.00604631]
[1725468067445,0.4032,2480.0,2479.9,0.00604631]
[1725468068642,0.60559511,2480.0,2479.9,0.00604631]
[1725468069244,14.42560511,2480.0,2479.9,0.00604631]
[1725468069452,15.43361511,2480.0,2479.9,0.00604631]
[1725468069755,13.01439511,2480.0,2478.7,0.202]
[1725468069955,13.01439511,2480.0,2478.2,3.7887]
[1725468069956,1.00838,2479.1,2478.5,0.98034]
[1725468070150,0.40339,2478.9,2478.5,0.98034]
[1725468070649,0.40339,2478.9,2478.5,0.5769]
[1725468070851,0.40943631,2478.9,2478.5,0.58294631]
[1725468071248,0.40943631,2478.9,2478.6,3.2078]
[1725468071249,0.00604631,2478.9,2478.6,3.2078]
[1725468071460,0.00604631,2478.9,2478.8,0.4034]
[1725468071655,0.00604631,2478.9,2478.8,4.4378]
[1725468072051,0.40329,2479.5,2479.2,0.40332]
[1725468072251,0.40329,2479.5,2479.0,3.2078]
[1725468072451,6.5689,2479.9,2479.1,0.6088]
[1725468072655,0.40324,2479.8,2479.5,0.40327]
[1725468072959,0.40326,2479.7,2479.4,0.40329]
[1725468073159,0.00604631,2479.8,2479.5,4.0328]
[1725468073362,0.00604631,2479.8,2479.7,0.40325]
[1725468073657,0.00604631,2479.8,2479.6,1.01926]
[1725468073866,0.00604631,2479.8,2479.6,5.05206]
[1725468074059,0.00604631,2479.8,2479.7,4.0328]
[1725468074560,0.00604631,2479.8,2479.7,4.43605]
[1725468074951,0.00604631,2479.8,2479.7,10.43605]
[1725468075352,0.00604631,2479.8,2479.7,12.01938]
[1725468075552,1.00789,2480.3,2479.7,4.0328]
[1725468075758,1.00789,2480.3,2479.6,3.2078]
[1725468075759,0.40324,2479.8,2479.6,0.40325]
[1725468075961,0.566,2480.2,2479.5,3.2078]
[1725468076159,0.40323,2479.9,2479.7,0.40324]
[1725468076356,3.78786,2480.4,2479.7,0.6083]
[1725468076556,0.4032,2480.1,2479.8,3.21384631]
[1725468076758,1.01395631,2480.3,2479.9,0.4032]
[1725468076960,0.00604631,2480.3,2479.9,4.032]
[1725468077462,0.40319,2480.1,2479.9,0.40321]
[1725468078171,0.40322,2479.9,2479.8,3.21384631]
[1725468078660,0.40321,2480.0,2479.8,7.24664631]
[1725468078863,0.40321,2480.0,2479.8,3.21384631]
[1725468079063,0.40321,2480.0,2479.8,7.24664631]
[1725468079865,0.40322,2479.9,2479.8,7.24664631]
[1725468080162,0.40321,2480.0,2479.8,3.21384631]
[1725468080565,1.01394631,2480.3,2479.8,3.21384631]
[1725468080861,0.4032,2480.1,2479.8,3.61707631]
[1725468081067,0.40319,2480.1,2479.8,3.61707631]
[1725468081461,0.40319,2480.1,2479.8,3.21384631]
[1725468081671,0.40319,2480.1,2479.8,3.61707631]
[1725468081969,0.40321,2480.0,2479.8,3.21384631]
[1725468082160,1.00793,2480.2,2479.8,3.21384631]
[1725468082363,0.40321,2480.0,2479.8,0.00604631]
[1725468082555,3.40866725,2480.3,2479.8,0.00604631]
[1725468082556,0.40319,2480.1,2479.8,0.00604631]
[1725468083365,0.4032,2480.0,2479.8,0.00604631]
[1725468083567,0.40322,2479.9,2479.8,0.00604631]
[1725468083776,0.40321,2480.0,2479.8,0.00604631]
[1725468083955,0.40322,2479.9,2479.8,0.00604631]
[1725468084159,2.41932,2479.9,2479.8,0.00604631]
[1725468084360,6.45212,2479.9,2479.8,0.00604631]
[1725468084563,9.65992,2479.9,2479.8,0.00604631]
[1725468084764,18.03672,2479.9,2479.0,3.4098]
[1725468084957,0.40335,2479.1,2479.0,3.2078]
[1725468085360,3.2078,2479.4,2479.0,3.2078]
[1725468085575,0.4033,2479.4,2479.0,3.61116]
[1725468085863,0.40328,2479.6,2479.0,3.21384631]
[1725468086069,0.40328,2479.5,2479.1,1.00094]
[1725468086258,0.40329,2479.5,2479.1,1.00094]
[1725468086461,1.00821,2479.5,2479.1,0.5976]
[1725468086662,0.40333,2479.2,2479.1,0.5976]
[1725468089276,0.40333,2479.2,2479.0,3.21384631]
[1725468089578,0.40335,2479.1,2479.0,3.21384631]
[1725468090373,1.00829,2479.3,2479.0,3.21384631]
[1725468090563,0.40335,2479.1,2479.0,3.21384631]
[1725468091165,3.78819,2479.6,2479.1,0.40334]
[1725468091367,0.40328,2479.5,2479.1,0.40334]
[1725468091665,0.40335,2479.1,2479.0,3.21384631]
[1725468092466,4.61953,2479.1,2479.0,0.00604631]
[1725468093975,14.65313,2479.1,2479.0,0.00604631]
[1725468094179,11.44533,2479.1,2479.0,0.00604631]
[1725468095069,5.44533,2479.1,2479.0,0.00604631]
[1725468095268,0.40335,2479.1,2479.0,0.00604631]
[1725468095772,1.41173,2479.1,2479.0,0.00604631]
[1725468096172,5.44533,2479.1,2479.0,0.00604631]
[1725468097074,0.40334,2479.2,2479.0,0.00604631]
[1725468097375,3.56416716,2479.3,2479.0,0.00604631]
[1725468097569,0.40334,2479.2,2479.0,0.00604631]
[1725468097768,3.2078,2479.6,2479.4,0.40329]
[1725468098074,3.2078,2479.9,2479.3,3.2078]
[1725468098271,0.40326,2479.7,2479.3,0.4033]
[1725468098468,0.40327,2479.6,2479.3,0.4033]
[1725468098672,0.40325,2479.7,2479.3,0.4033]
[1725468098871,0.40327,2479.6,2479.3,0.4033]
[1725468099384,0.40326,2479.7,2479.3,0.40331]
[1725468100175,0.40327,2479.6,2479.3,0.40331]
[1725468100573,0.40329,2479.5,2479.2,0.97212]
[1725468100975,0.4033,2479.5,2479.2,0.5688]
[1725468101174,0.4033,2479.4,2479.2,0.5688]
[1725468101770,0.40329,2479.5,2479.2,0.97213]
[1725468101966,5.01015,2480.2,2479.4,3.2078]
[1725468102178,5.01015,2480.2,2479.7,0.40323]
[1725468102372,0.4032,2480.1,2479.8,1.61043]
[1725468102675,0.4032,2480.0,2479.8,1.2072]
[1725468102869,0.40322,2479.9,2479.8,1.2072]
[1725468103272,0.40321,2480.0,2479.8,1.2072]
[1725468103470,0.20233744,2480.2,2479.8,1.61043]
[1725468103676,0.40321,2480.0,2479.8,1.2072]
[1725468104066,0.20019068,2480.3,2479.8,1.61043]
[1725468104265,0.00604631,2480.3,2479.8,1.2072]
[1725468104469,0.40920631,2480.3,2479.9,0.5922]
[1725468104665,0.40318,2480.2,2479.9,0.5922]
[1725468105281,0.21165148,2480.3,2479.9,0.5922]
[1725468105282,0.40319,2480.1,2479.9,0.5922]
[1725468106779,1.21955148,2480.3,2479.9,0.5922]
[1725468106972,0.4032,2480.1,2479.9,0.5922]
[1725468107479,0.40319,2480.1,2479.9,0.5922]
[1725468107780,0.40321,2480.0,2479.8,1.2072]
[1725468107980,1.21955148,2480.3,2479.8,1.2072]
[1725468108172,0.4032,2480.1,2479.8,1.2072]
[1725468108480,4.42735148,2480.3,2479.8,1.2072]
[1725468108676,0.4032,2480.0,2479.8,1.2072]
[1725468108872,0.40322,2479.9,2479.8,1.2072]
[1725468109078,0.40322,2479.9,2479.5,0.6076]
[1725468109079,0.40326,2479.7,2479.5,0.6076]
[1725468109375,0.40327,2479.6,2479.4,3.2078]
[1725468109678,0.40328,2479.5,2479.2,1.1806]
[1725468110877,0.4033,2479.4,2479.2,1.1806]
[1725468111274,0.40331,2479.3,2479.2,1.1806]
[1725468111474,0.40331,2479.3,2479.2,0.5921]
[1725468111677,0.40331,2479.4,2479.2,0.5921]
[1725468112070,0.40329,2479.5,2479.2,0.5921]
[1725468112684,0.4033,2479.4,2479.2,0.5921]
[1725468113184,0.40331,2479.3,2479.2,0.5921]
[1725468113377,0.40331,2479.3,2479.0,0.59454631]
[1725468113583,0.40334,2479.2,2479.0,0.59454631]
[1725468114581,0.40335,2479.1,2479.0,0.59454631]
[1725468114782,2.36112533,2479.6,2479.1,0.40334]
[1725468114982,0.40329,2479.5,2479.1,0.40335]
[1725468115486,0.40328,2479.5,2479.2,0.40332]
[1725468116086,0.40329,2479.5,2479.2,0.40332]
[1725468116579,3.98135184,2479.7,2479.0,0.59454631]
[1725468116580,0.4033,2479.4,2479.0,0.59454631]
[1725468116888,0.40329,2479.5,2479.2,0.40332]
[1725468117387,0.40327,2479.6,2479.4,0.40329]
[1725468117686,0.40325,2479.7,2479.5,0.40327]
[1725468117890,0.40325,2479.7,2479.6,0.6267]
[1725468118273,0.40325,2479.8,2479.6,0.6267]
[1725468118473,3.2078,2480.1,2479.6,3.8345]
[1725468118679,0.40321,2480.0,2479.7,0.6186]
[1725468119284,3.61099,2480.1,2479.8,0.40322]
[1725468119684,0.4032,2480.0,2479.8,0.40322]
[1725468119980,3.61099,2480.1,2479.7,0.6186]
[1725468120184,3.61099,2480.1,2479.8,0.40322]
[1725468120587,0.4032,2480.0,2479.7,1.02184]
[1725468120786,3.61099,2480.1,2479.8,0.40323]
[1725468120987,3.61099,2480.1,2479.8,0.40322]
[1725468121300,3.611,2480.1,2479.9,1.02902]
[1725468121585,1.21954148,2480.3,2479.9,0.6258]
[1725468121788,1.21954148,2480.3,2479.9,1.029]
[1725468121789,0.40317,2480.2,2479.9,1.029]
[1725468121977,0.40318,2480.1,2479.9,1.02901]
[1725468122179,0.4032,2480.0,2479.9,0.6258]
[1725468122681,0.4032,2480.0,2479.8,0.40322]
[1725468122984,0.40319,2480.1,2479.9,0.40322]
[1725468123289,0.4032,2480.0,2479.8,0.97782]
[1725468124485,1.00797,2480.1,2479.7,0.6186]
[1725468124691,1.41138,2479.7,2479.6,0.6267]
[1725468125188,1.00803,2480.0,2479.6,4.6595]
[1725468125383,4.83236,2480.2,2479.6,0.6267]
[1725468125581,0.40325,2479.7,2479.6,0.6267]
[1725468125783,0.40325,2479.8,2479.6,0.6267]
[1725468126189,0.40323,2479.9,2479.6,1.02996]
[1725468126382,0.40322,2479.9,2479.6,0.6267]
[1725468126582,3.09798,2480.1,2479.6,1.02996]
[1725468126778,0.40324,2479.8,2479.6,1.02996]
[1725468126990,0.40324,2479.8,2479.6,0.6267]
[1725468127387,0.40324,2479.8,2479.6,1.02996]
[1725468127688,4.40973639,2480.2,2479.7,4.0328]
[1725468127689,1.00796,2480.2,2479.7,4.0328]
[1725468127989,0.40318,2480.2,2480.0,0.40319]
[1725468128388,0.40318,2480.1,2480.0,0.40319]
[1725468128588,0.40318,2480.2,2480.1,0.40318]
[1725468128794,0.00604631,2480.3,2480.2,0.40317]
[1725468129177,0.00604631,2480.3,2480.2,4.43517]
[1725468129381,0.00604631,2480.3,2480.2,5.19337]
[1725468129878,2.09,2480.9,2480.6,0.40309]
[1725468130193,0.40308,2480.8,2480.7,0.40309]
[1725468130690,25.75022,2481.3,2480.9,0.40305]
[1725468130886,25.75626631,2481.3,2481.0,1.14843]
[1725468131086,0.40302,2481.1,2481.0,0.7454]
[1725468132486,1.00754,2481.2,2480.9,0.00604631]
[1725468132487,0.40304,2481.0,2480.9,0.00604631]
[1725468132686,1.41064,2481.0,2480.9,0.00604631]
[1725468132988,15.23864,2481.0,2480.9,0.00604631]
[1725468133182,12.8204,2481.0,2480.1,1.7574]
[1725468133495,0.40312,2480.5,2480.2,3.61096]
[1725468133687,0.40311,2480.6,2480.2,3.2078]
[1725468133987,0.40311,2480.6,2480.2,3.61097]
[1725468134187,0.40311,2480.6,2480.2,3.61701631]
[1725468134588,1.0077,2480.8,2480.2,3.21384631]
[1725468134794,0.40315,2480.3,2480.2,0.00604631]
[1725468134991,3.61095,2480.3,2480.2,0.00604631]
[1725468135195,8.65084,2480.3,2480.2,0.00604631]
[1725468137084,1.00795,2480.2,2479.5,9.3507612]
[1725468137285,3.6148,2480.4,2479.6,0.40327]
[1725468137286,0.60827257,2480.1,2479.6,0.40327]
[1725468137492,2.79,2480.4,2479.5,9.3507612]
[1725468137689,2.79,2480.4,2479.9,0.4032]
[1725468138084,3.19919631,2480.4,2479.9,0.40924631]
[1725468138690,0.40316,2480.3,2479.9,1.16414631]
[1725468139491,0.40317,2480.2,2479.9,0.76094631]
[1725468139698,0.40918631,2480.4,2480.1,0.40318]
[1725468140000,0.40918631,2480.4,2480.2,0.7551]
[1725468140492,0.00604631,2480.4,2480.2,0.7551]
[1725468140791,0.40315,2480.3,2480.2,0.7551]
[1725468141194,0.40315,2480.3,2480.0,1.17419]
[1725468141399,0.00604631,2480.4,2480.0,1.17419]
[1725468141589,0.40316,2480.3,2480.1,0.40318]
[1725468141784,0.40919631,2480.4,2480.1,0.40318]
[1725468141998,0.40315,2480.3,2480.1,0.40318]
[1725468142185,0.40315,2480.3,2480.0,1.17419]
[1725468142390,0.00604631,2480.4,2480.0,0.771]
[1725468142588,0.00604631,2480.4,2480.1,11.89707525]
[1725468142799,0.00604631,2480.4,2480.3,0.40315]
[1725468142996,0.00604631,2480.4,2480.3,4.43515]
[1725468143294,0.00604631,2480.4,2480.3,5.44304]
[1725468143701,0.00604631,2480.4,2480.3,4.43515]
[1725468143894,0.00604631,2480.4,2480.3,5.44304]
[1725468145192,0.40304,2481.1,2480.3,10.032]
[1725468145496,0.40302,2481.2,2481.1,0.40301]
[1725468146104,0.40303,2481.1,2481.0,0.40303]
[1725468146295,25.75022,2481.3,2480.9,1.5863]
[1725468146490,25.75022,2481.3,2481.2,0.40301]